Cogmind - Beta 9.6 @@@ ROGUE MODE // 2020.05.24 @ 22:40:43 Player: RNGesus Result: Destroyed by S-10 Pest with Light Assault Rifle Performance ------------- Evolutions (0) 0 Regions Visited (4) 800 Robots Destroyed (29) 145 Value Destroyed (619) 619 Prototype IDs (22) 440 Alien Tech Used (0) 0 Bonus (300) 300 TOTAL SCORE: 2304 Bonus ------- Aligned with FarCom 300 Cogmind --------- Core Integrity 0/250 Matter 247/300 Energy 250/250 System Corruption 0% Temperature Cool (0) Movement Rolling (130) Ox5 Location -9/Mines Parts ------- > --- POWER (1) -------- Ion Engine > --- PROPULSION (2) --- Light Treads Wheel > --- UTILITY (2) ------ Medium Storage Unit High-capacity Storage Unit > --- WEAPON (2) ------- Heavy Assault Rifle Heavy Assault Rifle > --- INVENTORY (16) --- Reinforced Deuterium Engine Reinforced Deuterium Engine Light Fission Core Signal Interpreter Light Armor Plating Hacking Suite Hacking Suite Hacking Suite Grenade Launcher Longsword +1 Peak State ------------ > --- POWER ------------ Ion Engine > --- PROPULSION ------- Light Treads Wheel > --- UTILITY ---------- Medium Storage Unit High-capacity Storage Unit > --- WEAPON ----------- Heavy Assault Rifle Heavy Assault Rifle > --- INVENTORY -------- Reinforced Deuterium Engine Reinforced Deuterium Engine Light Fission Core Signal Interpreter Light Armor Plating Hacking Suite Hacking Suite Hacking Suite Grenade Launcher Longsword +1 [Rating: 12] Favorites ----------- Power Ion Engine Engine Ion Engine Propulsion Light Treads Treads Light Treads Wheel Wheel Utility Medium Storage Unit Storage Medium Storage Unit Weapon Heavy Assault Rifle Energy Gun Small Laser Ballistic Gun Heavy Assault Rifle Build | -11 -10 -10 -10 -9 ------- Run | Scr Mat Min Exi Min Slots Evolved . | . . . . . Power . | . . . . . Propulsion . | . . . . . Utility . | . . . . . Weapon . | . . . . . Parts Attached 19 | 6 11 . 1 1 Power 2 | 1 1 . . . Engine 2 | 1 1 . . . Core . | . . . . . Reactor . | . . . . . Propulsion 6 | 2 3 . 1 . Treads 5 | 2 2 . 1 . Leg . | . . . . . Wheel 1 | . 1 . . . Hover . | . . . . . Flight . | . . . . . Utility 3 | 1 2 . . . Device . | . . . . . Storage 3 | 1 2 . . . Processor . | . . . . . Hackware . | . . . . . Protection . | . . . . . Artifact . | . . . . . Weapon 8 | 2 5 . . 1 Energy Gun 1 | 1 . . . . Energy Cannon . | . . . . . Ballistic Gun 7 | 1 5 . . 1 Ballistic Cannon . | . . . . . Launcher . | . . . . . Special Weapon . | . . . . . Impact Weapon . | . . . . . Slashing Weapon . | . . . . . Piercing Weapon . | . . . . . Special Melee Weapon . | . . . . . Unidentified Prototypes . | . . . . . Parts Lost 4 | . 2 2 . . Power 1 | . 1 . . . Propulsion 1 | . . 1 . . Utility . | . . . . . Weapon 2 | . 1 1 . . Highest Loss Streak 2 | . 2 2 . . Average Slot Usage (%) 91 | . 93 94 79 94 Engine 14 | . 14 14 14 14 Treads 21 | . 27 11 8 14 Wheel 5 | . . 14 14 14 Storage 24 | . 22 28 28 28 Energy Gun 1 | . 1 . . . Ballistic Gun 23 | . 25 25 14 22 Naked Turns . | . . . . . Heaviest Build 51 | 10 51 51 48 51 Greatest Support 40 | 40 40 10 20 10 Greatest Overweight (x) 5 | . 5 5 4 5 Average Overweight (x) 2 | . . 4 3 4 Largest Inventory Capacity 16 | 6 16 16 16 16 Average Capacity 12 | 5 11 16 16 16 Most Carried 11 | 2 9 9 11 11 Average Carried 7 | . 6 9 8 10 Final Capacity 16 | 6 16 16 16 16 Final Carried 11 | 2 9 9 11 10 Class Distribution -------------------- 100% | Mutant Dominant Class ---------------- Mutant | -10/Materials Mutant | -10/Mines Mutant | -10/Exiles Mutant | -9/Mines Resources | -11 -10 -10 -10 -9 ----------- Run | Scr Mat Min Exi Min Matter Collected 866 | 205 531 130 . . Remotely . | . . . . . Salvage Created 867 | . 707 160 . . Parts 63 | . 55 8 . . Haulers Intercepted 2 | . 2 . . . Recyclers Shooed . | . . . . . Parts Field Recycled . | . . . . . Retrieved Matter . | . . . . . Parts Self-Destructed . | . . . . . Prevented . | . . . . . Kills | -11 -10 -10 -10 -9 ------- Run | Scr Mat Min Exi Min Combat Hostiles Destroyed 21 | . 15 6 . . Guns 21 | . 15 6 . . Classes Destroyed 6 | . 6 . . . Worker 1 | . 1 . . . Hauler 2 | . 2 . . . Operator 4 | . 4 . . . Watcher 1 | . 1 . . . Swarmer 9 | . 5 4 . . Grunt 12 | . 10 2 . . Best Kill Streak 3 | . 3 3 . . Combat Bots Only 3 | . 3 3 . . Max Kills in Single Turn 1 | . 1 1 . . Gunslinging . | . . . . . Exploded . | . . . . . Melee . | . . . . . Uniques/NPCs Destroyed . | . . . . . Combat | -11 -10 -10 -10 -9 -------- Run | Scr Mat Min Exi Min Damage Taken 1054 | . 640 248 108 58 Core 257 | . 113 106 21 17 Absorbed by Shields . | . . . . . Core Remaining (%) 100 | 100 . . . . Volleys Fired 105 | . 81 21 1 2 Largest 2 | . 2 2 1 2 Hottest 60 | . 60 46 23 46 Shots Fired 194 | . 160 29 1 4 Gun 194 | . 160 29 1 4 Cannon . | . . . . . Launcher . | . . . . . Special . | . . . . . Kinetic 183 | . 149 29 1 4 Thermal 11 | . 11 . . . Explosive . | . . . . . Electromagnetic . | . . . . . Robot Hit Streak 18 | . 18 6 . 1 Robot Miss Streak 4 | . 4 4 1 3 Penetration Max . | . . . . . Secondary Targets . | . . . . . Shots Hit Robots 126 | . 110 15 . 1 Core Hits 44 | . 36 8 . . Critical Hits . | . . . . . Critical Kills . | . . . . . Critical Parts Destroyed . | . . . . . Melee Attacks . | . . . . . Impact . | . . . . . Slashing . | . . . . . Piercing . | . . . . . Sneak Attacks . | . . . . . Combat Hostiles . | . . . . . Follow-up Attacks . | . . . . . Damage Inflicted 1854 | . 1606 248 . . Guns 1854 | . 1606 248 . . Cannons . | . . . . . Explosions . | . . . . . Melee . | . . . . . Ramming . | . . . . . Kinetic 1766 | . 1518 248 . . Thermal 88 | . 88 . . . Explosive . | . . . . . Electromagnetic . | . . . . . Impact . | . . . . . Slashing . | . . . . . Piercing . | . . . . . Highest Corruption . | . . . . . Average Corruption . | . . . . . Corruption Purged . | . . . . . Overload Shots . | . . . . . Overflow Damage . | . . . . . Projectiles . | . . . . . Explosions . | . . . . . Melee . | . . . . . Knockbacks . | . . . . . Impact . | . . . . . Kinetic . | . . . . . Secondary . | . . . . . Self-Inflicted Damage . | . . . . . Shots . | . . . . . Rammed . | . . . . . Targets Rammed . | . . . . . Kicked . | . . . . . Crushed . | . . . . . Highest Temperature 30 | . 30 4 . . Average Temperature 8 | . 8 4 . . Received Heat Transfer 342 | . 252 90 . . Siege Activations . | . . . . . Robots Corrupted . | . . . . . Combat Hostiles . | . . . . . Parts Fried . | . . . . . Impact Corruptions . | . . . . . Robots Melted . | . . . . . Combat Hostiles . | . . . . . Parts Melted . | . . . . . Heat Transferred 200 | . 200 . . . Parts Sabotaged . | . . . . . Parts Stolen . | . . . . . Parts Stripped . | . . . . . Power Chain Reactions . | . . . . . Missiles Intercepted . | . . . . . Alert | -11 -10 -10 -10 -9 ------- Run | Scr Mat Min Exi Min Peak Influence 177 | . 177 70 . 15 Average Influence 69 | . 89 18 . 2 Maximum Alert Level . | . . . . . Low Security (%) 100 | 100 100 100 . 100 Level 1 . | . . . . . Level 2 . | . . . . . Level 3 . | . . . . . Level 4 . | . . . . . Level 5 . | . . . . . High Security . | . . . . . Max Security . | . . . . . Squads Dispatched 4 | . 4 . . . Investigation . | . . . . . Extermination . | . . . . . Reinforcement 4 | . 4 . . . Assault . | . . . . . Garrison . | . . . . . Intercept . | . . . . . Construction Impeded . | . . . . . Haulers Reinforced . | . . . . . Stealth | -11 -10 -10 -10 -9 --------- Run | Scr Mat Min Exi Min Distress Signals 2 | . 2 . . . Communications Jammed . | . . . . . Distress Signals . | . . . . . Times Spotted 64 | . 45 8 8 3 Peak Tracking Total 9 | . 4 3 9 4 Tactical Retreats 10 | . 9 1 . . Traps | -11 -10 -10 -10 -9 ------- Run | Scr Mat Min Exi Min Traps Triggered 3 | . 3 . . . Indirectly . | . . . . . Trap Hack Attempts . | . . . . . Triggered . | . . . . . Disarmed . | . . . . . Reprogrammed . | . . . . . Reused . | . . . . . Traps Extracted . | . . . . . Installed . | . . . . . Triggered . | . . . . . Machines | -11 -10 -10 -10 -9 ---------- Run | Scr Mat Min Exi Min Machines Disabled 1 | . 1 . . . Max in Single Turn 1 | . 1 . . . Machines Sabotaged . | . . . . . Garrisons Compromised . | . . . . . Overloaded Fab Kills . | . . . . . Fab Network Shutdowns . | . . . . . Hacking | -11 -10 -10 -10 -9 --------- Run | Scr Mat Min Exi Min Machines Accessed 2 | . 1 . 1 . Terminals 1 | . 1 . . . Fabricators . | . . . . . Repair Stations . | . . . . . Recycling Units . | . . . . . Scanalyzers . | . . . . . Garrison Access . | . . . . . Total Hacks 2 | . 1 . 1 . Successful 1 | . . . 1 . Failed 1 | . 1 . . . Catastrophic 1 | . 1 . . . Database Lockouts . | . . . . . Manual 3 | . 1 . 2 . Terminals 1 | . 1 . . . Fabricators . | . . . . . Repair Stations . | . . . . . Recycling Units . | . . . . . Scanalyzers . | . . . . . Garrison Access . | . . . . . Terminal Hacks 1 | . . . 1 . EX-Prototype ID Bank 1 | . . . 1 . Fabricator Hacks . | . . . . . Repair Station Hacks . | . . . . . Recycling Unit Hacks . | . . . . . Scanalyzer . | . . . . . Garrison Access Hacks . | . . . . . Unauthorized Hacks . | . . . . . Terminals . | . . . . . Fabricators . | . . . . . Repair Stations . | . . . . . Recycling Units . | . . . . . Scanalyzers . | . . . . . Garrison Access . | . . . . . Data Cores Recovered . | . . . . . Used . | . . . . . Hacking Detections 1 | . 1 . . . Full Trace Events . | . . . . . Feedback Events . | . . . . . Feedback Blocked . | . . . . . Robot Schematics Acquired . | . . . . . Robots Built . | . . . . . Matter . | . . . . . Time . | . . . . . Total Robot Build Rating . | . . . . . Part Schematics Acquired . | . . . . . Parts Built . | . . . . . Matter . | . . . . . Time . | . . . . . Total Part Build Rating . | . . . . . Parts Repaired . | . . . . . Time . | . . . . . Parts Recycled . | . . . . . Recycled Matter . | . . . . . Retrieved Matter . | . . . . . Retrieved Components . | . . . . . Parts Scanalyzed . | . . . . . Part Schematics Acquired . | . . . . . Parts Damaged . | . . . . . Bothacking | -11 -10 -10 -10 -9 ------------ Run | Scr Mat Min Exi Min Used RIF Installer . | . . . . . Robots Hacked . | . . . . . Non-combat . | . . . . . Combat . | . . . . . Robot Hacks Applied . | . . . . . Relay Couplers Released . | . . . . . Robots Rewired . | . . . . . Allies Hacked . | . . . . . Hacks Repelled . | . . . . . Allies | -11 -10 -10 -10 -9 -------- Run | Scr Mat Min Exi Min Total Allies . | . . . . . Largest Group . | . . . . . Highest-Rated Group . | . . . . . Highest-Rated Ally . | . . . . . Total Orders . | . . . . . Ally Attacks . | . . . . . Total Damage . | . . . . . Kills . | . . . . . Allies Corrupted . | . . . . . Allies Melted . | . . . . . Intel | -11 -10 -10 -10 -9 ------- Run | Scr Mat Min Exi Min Robot Analysis Total . | . . . . . Derelict Logs Recovered 2 | . . 1 . 1 Drone Launches . | . . . . . Drone Recoveries . | . . . . . Exploration | -11 -10 -10 -10 -9 ------------- Run | Scr Mat Min Exi Min Turns Passed 2604 | 65 1620 468 398 53 Spaces Moved 1433 | 36 779 325 256 37 Core 2 | 2 . . . . Treads 878 | 34 739 . 105 . Legs . | . . . . . Wheels 553 | . 40 325 151 37 Hover . | . . . . . Flight . | . . . . . Fastest Speed 50 | 50 130 120 120 120 Average Speed 154 | 153 168 128 152 124 Slowest Speed 200 | 160 180 130 200 130 Overloaded Moves . | . . . . . Propulsion Burnouts . | . . . . . Robots Hopped . | . . . . . Cave-ins Triggered . | . . . . . Exploration Rate (%) 41 | 4 91 55 42 13 Regions Visited 4 Branch Regions 3 Pre-discovered Areas . | . . . . . Known Exits Taken . | . . . . . Unknown Exits Taken 4 | 1 1 1 1 . Scrap Searched 1 | . . 1 . . Spaces Dug . | . . . . . Terrain Destroyed . | . . . . . Melee . | . . . . . Projectile . | . . . . . AOE . | . . . . . Actions | -11 -10 -10 -10 -9 --------- Run | Scr Mat Min Exi Min Total 1622 | 43 930 347 262 40 Wait 43 | . 41 2 . . Move 1429 | 35 778 324 255 37 Hop . | . . . . . Pick Up 19 | 2 13 . 4 . Fast Attach 11 | 6 5 . . . Attach 5 | . 3 . 1 1 Detach . | . . . . . Swap 3 | . 3 . . . Drop 7 | . 6 . 1 . Fire 105 | . 81 21 1 2 Melee . | . . . . . Ram . | . . . . . Kick . | . . . . . Crush . | . . . . . Escape Stasis . | . . . . . Rewire . | . . . . . Trap . | . . . . . Miscellaneous . | . . . . . Route ------- -11/Scrapyard -10/Materials (discovered 4 exits: [*Mat x3] / [*Min]) -10/Mines (discovered 2 exits: [*Mat] / *Exi) -10/Exiles -9/Mines History --------- Turn | Location | Event 6 | -11/Scrapyard | Discovered new exit (range 15) 66 | -11/Scrapyard | Entered Materials 126 | -10/Materials | Discovered new exit (range 14) 232 | -10/Materials | Discovered new exit (range 13) 326 | -10/Materials | Build established: Mutant 721 | -10/Materials | Discovered new exit (range 14) 1415 | -10/Materials | Discovered new exit (range 7) 1686 | -10/Materials | Entered Mines 1930 | -10/Mines | Learned Materials emergency access door positions 1937 | -10/Mines | Discovered new exit (range 8) 2017 | -10/Mines | Deemed a non-threat by the Exiles lab entrance 2059 | -10/Mines | Core integrity fell below 50% 2122 | -10/Mines | Core integrity fell below 20% 2150 | -10/Mines | Discovered new exit (range 5) 2154 | -10/Mines | Entered Exiles 2183 | -10/Exiles | Met 8R-AWN 2204 | -10/Exiles | Met EX-HEX 2240 | -10/Exiles | Met EX-BIN 2259 | -10/Exiles | Aligned with FarCom system 2260 | -10/Exiles | Given EX-Vault access code 2289 | -10/Exiles | Opened EX-Vault 2297 | -10/Exiles | Found Longsword +1 2358 | -10/Exiles | Warned to stay clear of 0b10 Research branches 2526 | -10/Exiles | Attacked by the Exiles 2538 | -10/Exiles | Discovered new exit (range 14) 2552 | -10/Exiles | Left Exiles lab with Longsword +1 2552 | -10/Exiles | Entered Mines 2566 | -9/Mines | Learned Materials terminal intel 2569 | -9/Mines | Met a Derelict bent on vengeance 2597 | -9/Mines | Received a Rocket Launcher from a helpful Derelict 2605 | -9/Mines | Destroyed by S-10 Pest with Light Assault Rifle Last Messages --------------- 02526_ HV Slug penetrates Wall. 02526_ Penetrated by HV Slug. 02538_ EXIT=FOUND LOCATION=UNKNOWN GOAL=ESCAPE 02566_ Acquired derelict log, extracted data. Data stored: Materials terminal intel. 02585_ A derelict emerges from the shadows. 02586_ B9-T5N(g): "Some of my friends down here think you need a mining laser when you travel the depths." 02587_ B9-T5N(g): "Pshh... whatever." 02588_ B9-T5N(g): "Everyone knows a good old rocket launcher goes a long way." 02589_ B9-T5N(g): "Need to get rid of a swarm? Done. Need a big hole in the wall? Done." 02596_ B9-T5N(g): "Need a small hole in the wall? Leave that to the mining laser wimps, I say!" 02597_ B9-T5N(g): "Would you like a rocket launcher? I know I would if I were you, so I'm going to lend you mine." 02597_ B9-T5N(g) slips back into the shadows. Map ----- +----------------------------------------------------+ | | | | | | | | | | | | | | | ?????????????????????????????????????????? | | ?????????????????????????????????????????? | | ?????????????????????????????????????????? | | ?????????????????????????????????????????? | | ??????????????????""?????????????????????? | | ??????????????"???""?????????????????????? | | ??????????????"???""?????????????????????? | | ?????????????? ??? ?????????????????????? | | ?????????????? ???# ????????????????????? | | ?????????????? ???# ???????????????????? | | ?????????????# #??# #########?????????? | | ?????????????# #?## #????????? | | ?????????????# #?# ######???# | | ?????????????# #?# ## #??# | | ?????????????# #?# ### # | | ?????????????# #?## # | | ?????????????# #??## ####### # | | ?????????????# ##### #?????## ### # # | | ?????????????# s@ s #??????####?# ## | | ?????????????####### #???????????# #? | | ???????????????????# #???????????# #?? | | ???????????????????# #???????????# #???## | | ??????????????????? #???????????# #????? | | ??????????????????? #??????????? ????? | | ??????????????????? #??????????? ""????? | | ??????????????????? ##??????????? ""????? | | ?????????????????? ????????????? ""????? | | ?????????????????? #????????????? ??????? | | ?????????????????? #??????????????#??????? | | ?????????????????? ??????????????????????? | | ?????????????????????????????????????????? | | ?????????????????????????????????????????? | | ?????????????????????????????????????????? | | ?????????????????????????????????????????? | | ?????????????????????????????????????????? | | ?????????????????????????????????????????? | | ?????????????????????????????????????????? | | ?????????????????????????????????????????? | | ?????????????????????????????????????????? | | ?????????????????????????????????????????? | | ?????????????????????????????????????????? | | ?????????????????????????????????????????? | | ?????????????????????????????????????????? | +----------------------------------------------------+ Best States ------------- Heat Dissipation 25 Energy Generation 10 Energy Capacity 250 Matter Stores 300 Matter Capacity 300 Sight Range 16 Terrain Scan Density 10 Evasion (%) 40 Recoil Reduction 2 Item Schematics ----------------- None Robot Schematics ------------------ None Fabricated ------------ Nothing Alien Tech Used ----------------- None Achievements -------------- None Challenges ------------ None Game ------ Seed SupercompositeTachyonCycler Manual? 0 Play Time 00:10:04 Cumulative 230.5 hours Start 2020.05.24 @ 22:29:09 End 2020.05.24 @ 22:40:43 Sessions 1 Manual Loads 0 Difficulty Rogue Special Mode None Game No. 373 Rogue 373 Adventurer 0 Explorer 0 Win Type - Total 5 Types 3/0/1/1/0/0/0 Lore% 78 Gallery% 79 Achievement% 60 Wizard Run 0 Options --------- ASCII 0 Keyboard 1 Movement Numpad Keybinds 0 Fullscreen 2 Font 18/X11Bold Map View 76x50 Tactical HUD 1 Map Filters NONE Filters NONE Steam 1 RUN: 7d6aa98e-9742-4deb-b4c4-fa2d8d82d688